bitfinex-derivatives/quotes_BNBF0:USTF0_20250608
["timestamp","ask_amount","ask_price","bid_price","bid_amount"]
[1749366715833,1.10918433,649.89,649.48,0.385]
[1749366716034,0.499,649.92,649.48,0.385]
[1749366716234,1.10918123,649.91,649.48,0.385]
[1749366716537,1.10918123,649.9,649.48,0.385]
[1749366716737,0.499,649.92,649.48,0.385]
[1749366716937,1.10913343,649.91,649.48,0.385]
[1749366717132,1.10913343,649.9,649.48,0.385]
[1749366717332,0.499,649.92,649.48,0.385]
[1749366717538,1.10915419,649.91,649.48,0.385]
[1749366717739,1.10915419,649.9,649.48,0.385]
[1749366718038,1.10918221,649.89,649.48,0.385]
[1749366718238,0.499,649.92,649.48,0.385]
[1749366718439,1.1091795,649.91,649.48,0.385]
[1749366718642,1.1091795,649.9,649.48,0.385]
[1749366718837,0.499,649.92,649.48,0.385]
[1749366719038,1.10919216,649.91,649.48,0.385]
[1749366719335,1.10919216,649.9,649.48,0.385]
[1749366719534,0.499,649.92,649.48,0.385]
[1749366719739,1.10920847,649.91,649.48,0.385]
[1749366719939,1.10920847,649.9,649.48,0.385]
[1749366720136,0.499,649.92,649.48,0.385]
[1749366720436,1.10922642,649.91,649.48,0.385]
[1749366720736,1.10922642,649.9,649.48,0.385]
[1749366720939,0.499,649.92,649.48,0.385]
[1749366721138,1.10924318,649.91,649.48,0.385]
[1749366721341,1.10924318,649.9,649.48,0.385]
[1749366721542,0.499,649.92,649.48,0.385]
[1749366721543,0.499,649.92,649.49,0.589]
[1749366721742,1.10925183,649.91,649.49,0.589]
[1749366721942,1.10925183,649.9,649.49,0.589]
[1749366722142,0.499,649.92,649.49,0.589]
[1749366722439,1.10940931,649.91,649.49,0.589]
[1749366722639,1.10940931,649.9,649.49,0.589]
[1749366722844,0.499,649.92,649.49,0.589]
[1749366723143,1.10945065,649.91,649.49,0.589]
[1749366723345,1.10945065,649.9,649.49,0.589]
[1749366723540,0.499,649.92,649.49,0.589]
[1749366723745,1.10946181,649.91,649.49,0.589]
[1749366723944,1.10946181,649.9,649.49,0.589]
[1749366724143,0.499,649.92,649.49,0.589]
[1749366724342,1.10949569,649.91,649.49,0.589]
[1749366724548,1.10949569,649.9,649.49,0.589]
[1749366724742,0.499,649.92,649.49,0.589]
[1749366724942,1.10954541,649.91,649.49,0.589]
[1749366725244,1.10954541,649.9,649.49,0.589]
[1749366725446,0.499,649.92,649.49,0.589]
[1749366725643,1.10955281,649.91,649.49,0.589]
[1749366725846,1.10955281,649.9,649.49,0.589]
[1749366726144,1.10956772,649.89,649.49,0.589]
[1749366726343,0.499,649.92,649.49,0.589]
[1749366726544,1.10957724,649.91,649.49,0.589]
[1749366726743,0.499,649.92,649.49,0.589]
[1749366726744,1.10957724,649.9,649.49,0.589]
[1749366726946,1.10957724,649.89,649.49,0.589]
[1749366727140,0.499,649.92,649.49,0.589]
[1749366727346,1.10953946,649.91,649.49,0.589]
[1749366727546,1.10953946,649.9,649.49,0.589]
[1749366727746,1.10953946,649.89,649.49,0.589]
[1749366727942,0.499,649.92,649.49,0.589]
[1749366728147,1.10884185,649.91,649.49,0.589]
[1749366728346,1.10884185,649.9,649.49,0.589]
[1749366728544,0.499,649.92,649.49,0.589]
[1749366728744,1.10889705,649.91,649.49,0.589]
[1749366729045,1.10889705,649.9,649.49,0.589]
[1749366729249,0.499,649.92,649.49,0.589]
[1749366729549,1.10890906,649.91,649.49,0.589]
[1749366729750,1.10890906,649.9,649.49,0.589]
[1749366729950,0.499,649.92,649.49,0.589]
[1749366730249,1.10895726,649.91,649.49,0.589]
[1749366730547,1.10895726,649.9,649.49,0.589]
[1749366730750,1.10895726,649.89,649.49,0.589]
[1749366730952,0.499,649.92,649.49,0.589]
[1749366731152,1.10902532,649.91,649.49,0.589]
[1749366731347,1.10902532,649.9,649.49,0.589]
[1749366731551,1.10902532,649.89,649.49,0.589]
[1749366731752,0.499,649.92,649.49,0.589]
[1749366732050,1.10911481,649.91,649.49,0.589]
[1749366732250,1.10911481,649.9,649.49,0.589]
[1749366732453,1.10911481,649.89,649.49,0.589]
[1749366732655,0.26782416,649.95,649.49,0.589]
[1749366732852,1.10949204,649.94,649.49,0.589]
[1749366733056,1.10949204,649.93,649.49,0.589]
[1749366733254,1.10949204,649.92,649.49,0.589]
[1749366733451,1.10949204,649.91,649.49,0.589]
[1749366733657,1.10949204,649.9,649.49,0.589]
[1749366733957,1.10949204,649.89,649.49,0.589]
[1749366734252,1.10949204,649.88,649.49,0.589]
[1749366734457,0.26782416,649.95,649.49,0.589]
[1749366734654,1.10961663,649.94,649.49,0.589]
[1749366734853,1.10961663,649.93,649.49,0.589]
[1749366735054,1.10961663,649.92,649.49,0.589]
[1749366735257,1.10961663,649.91,649.49,0.589]
[1749366735453,1.10961663,649.9,649.49,0.589]
[1749366735753,1.10961663,649.89,649.49,0.589]
[1749366735956,1.10961663,649.88,649.49,0.589]
[1749366736253,0.45,649.91,649.49,0.589]
[1749366736454,1.11003153,649.9,649.49,0.589]
[1749366736658,1.11003153,649.89,649.49,0.589]
[1749366736858,1.11003153,649.88,649.49,0.589]
[1749366737055,1.11003153,649.87,649.49,0.589]
[1749366737355,0.45,649.91,649.49,0.589]
[1749366737557,1.11039754,649.9,649.37,0.30799082]
[1749366737854,1.11039754,649.89,649.37,0.30799082]
[1749366738056,1.11039754,649.88,649.37,0.30799082]
[1749366738260,1.11039754,649.87,649.37,0.30799082]
[1749366738457,1.11039754,649.86,649.37,0.30799082]
[1749366738658,0.45,649.91,649.37,0.30799082]
[1749366738862,1.11090847,649.9,649.37,0.30799082]
[1749366739064,1.11090847,649.89,649.38,0.385]
[1749366739259,1.11090847,649.88,649.38,0.385]
[1749366739464,1.11090847,649.87,649.38,0.385]
[1749366739660,1.11090847,649.86,649.38,0.385]
[1749366739863,1.11090847,649.85,649.38,0.385]
[1749366740062,1.11090847,649.84,649.38,0.385]
[1749366740261,0.45,649.91,649.38,0.385]
[1749366740460,1.11104018,649.9,649.38,0.385]
[1749366740660,1.11104018,649.89,649.38,0.385]
[1749366740964,1.11104018,649.88,649.38,0.385]
[1749366741167,1.11104018,649.87,649.39,0.438]
[1749366741461,1.11104018,649.86,649.39,0.438]
[1749366741765,1.11104018,649.85,649.39,0.438]
[1749366741961,1.11104018,649.84,649.39,0.438]
[1749366742162,0.45,649.91,649.39,0.438]
[1749366742366,1.11111567,649.9,649.39,0.438]
[1749366742563,1.11111567,649.89,649.39,0.438]
[1749366742766,1.11111567,649.88,649.39,0.438]
[1749366742966,1.11111567,649.87,649.39,0.438]
[1749366743266,1.11111567,649.86,649.39,0.438]
[1749366743567,1.11111567,649.85,649.39,0.438]
[1749366743765,1.11111567,649.84,649.39,0.438]
[1749366743966,0.45,649.91,649.39,0.438]
[1749366744262,1.11111749,649.9,649.39,0.438]
[1749366744462,1.11111749,649.89,649.39,0.438]
[1749366744661,1.11111749,649.88,649.39,0.438]
[1749366744866,1.11111749,649.87,649.39,0.438]
[1749366745167,1.11111749,649.86,649.39,0.438]
[1749366745366,1.11111749,649.85,649.39,0.438]
[1749366745564,1.11111749,649.84,649.39,0.438]
[1749366745762,1.11111749,649.83,649.39,0.438]
[1749366745963,1.11111749,649.82,649.39,0.438]
[1749366746163,1.11111749,649.81,649.39,0.438]
[1749366746466,1.11111749,649.8,649.39,0.438]
[1749366746765,1.11111749,649.79,649.39,0.438]
[1749366746967,1.11111749,649.78,649.39,0.438]
[1749366747163,1.11111749,649.77,649.39,0.438]
[1749366747363,1.11111749,649.76,649.39,0.438]
[1749366747563,0.45,649.91,649.39,0.438]
[1749366747771,1.10997545,649.9,649.39,0.438]
[1749366748065,1.10997545,649.89,649.39,0.438]
[1749366748268,1.10997545,649.88,649.39,0.438]
[1749366748468,1.10997545,649.87,649.39,0.438]
[1749366748668,1.10997545,649.86,649.39,0.438]
[1749366748866,1.10997545,649.85,649.39,0.438]
[1749366749070,1.10997545,649.84,649.39,0.438]
[1749366749366,1.10997545,649.83,649.39,0.438]
[1749366749666,0.45,649.91,649.39,0.438]
[1749366749667,1.10997545,649.82,649.39,0.438]
[1749366749968,1.10997545,649.81,649.39,0.438]
[1749366750167,1.10997545,649.8,649.39,0.438]
[1749366750474,1.10997545,649.79,649.39,0.438]
[1749366750767,1.10997545,649.78,649.39,0.438]
[1749366750968,1.10997545,649.77,649.39,0.438]
[1749366751172,0.45,649.91,649.39,0.438]
[1749366751371,1.10945858,649.9,649.39,0.438]
[1749366751568,1.10945858,649.89,649.39,0.438]
[1749366751772,1.10945858,649.88,649.39,0.438]
[1749366751971,1.10945858,649.87,649.39,0.438]
[1749366752172,1.10945858,649.86,649.39,0.438]
[1749366752369,1.10945858,649.85,649.39,0.438]
[1749366752573,1.10945858,649.84,649.39,0.438]
[1749366752870,1.10945858,649.83,649.39,0.438]
[1749366753073,1.10945858,649.82,649.39,0.438]
[1749366753370,1.10945858,649.81,649.39,0.438]
[1749366753573,1.10945858,649.8,649.39,0.438]
[1749366753770,1.10945858,649.79,649.39,0.438]
[1749366753968,1.10945858,649.78,649.39,0.438]
[1749366754174,0.45,649.91,649.39,0.438]
[1749366754368,1.10929296,649.9,649.39,0.438]
[1749366754572,1.10929296,649.89,649.39,0.438]
[1749366754768,1.10929296,649.88,649.39,0.438]
[1749366754967,1.10929296,649.87,649.39,0.438]
[1749366755172,1.10929296,649.86,649.39,0.438]
[1749366755369,1.10929296,649.85,649.39,0.438]
[1749366755574,1.10929296,649.84,649.39,0.438]
[1749366755870,1.10929296,649.83,649.39,0.438]
[1749366756071,1.10929296,649.82,649.39,0.438]
[1749366756269,1.10929296,649.81,649.39,0.438]
[1749366756572,1.10929296,649.8,649.39,0.438]
[1749366756769,1.10929296,649.79,649.39,0.438]
[1749366756971,0.45,649.91,649.39,0.438]
[1749366757170,1.1082309,649.9,649.39,0.438]
[1749366757371,1.1082309,649.89,649.39,0.438]
[1749366757574,1.1082309,649.88,649.39,0.438]
[1749366757774,1.1082309,649.87,649.39,0.438]
[1749366757974,1.1082309,649.86,649.39,0.438]
[1749366758175,1.1082309,649.85,649.39,0.438]
[1749366758471,1.1082309,649.84,649.39,0.438]
[1749366758675,1.1082309,649.83,649.39,0.438]
[1749366758976,1.1082309,649.82,649.39,0.438]
[1749366759274,1.1082309,649.81,649.39,0.438]
[1749366759475,1.1082309,649.8,649.39,0.438]
[1749366759672,0.45,649.91,649.39,0.438]
[1749366759875,1.1080244,649.9,649.39,0.438]
[1749366760173,1.1080244,649.89,649.39,0.438]
[1749366760371,1.1080244,649.88,649.39,0.438]
[1749366760572,1.1080244,649.87,649.39,0.438]
[1749366760773,1.1080244,649.86,649.39,0.438]
[1749366760978,1.1080244,649.85,649.39,0.438]
[1749366761278,1.1080244,649.84,649.39,0.438]
[1749366761474,1.1080244,649.83,649.39,0.438]
[1749366761679,1.1080244,649.82,649.39,0.438]
[1749366761877,1.1080244,649.81,649.39,0.438]
[1749366762076,1.10855108,649.8,649.39,0.438]
[1749366762280,0.45,649.91,649.39,0.438]
[1749366762482,1.10851501,649.9,649.39,0.438]
[1749366762676,1.10851501,649.89,649.39,0.438]
[1749366762884,1.10851501,649.88,649.39,0.438]
[1749366763077,1.10851501,649.87,649.39,0.438]
[1749366763376,1.10851501,649.86,649.39,0.438]
[1749366763582,1.10851501,649.85,649.39,0.438]
[1749366763879,1.10851501,649.84,649.39,0.438]
[1749366764077,1.10851501,649.83,649.39,0.438]
[1749366764377,1.10851501,649.82,649.39,0.438]
[1749366764580,1.10851501,649.81,649.39,0.438]
[1749366764782,0.45,649.91,649.39,0.438]
[1749366764978,1.10843007,649.9,649.39,0.438]
[1749366765282,1.10843007,649.89,649.39,0.438]
[1749366765482,1.10843007,649.88,649.39,0.438]
[1749366765679,1.10843007,649.87,649.39,0.438]
[1749366765881,1.10843007,649.86,649.39,0.438]
[1749366766078,1.10843007,649.85,649.39,0.438]
[1749366766282,1.10843007,649.84,649.39,0.438]
[1749366766480,1.10843007,649.83,649.39,0.438]
[1749366766684,1.10843007,649.82,649.39,0.438]
[1749366766983,0.45,649.91,649.39,0.438]
[1749366766984,1.10843007,649.81,649.39,0.438]
[1749366767183,0.45,649.91,649.39,0.438]
[1749366767383,1.10831234,649.9,649.39,0.438]
[1749366767684,1.10831234,649.89,649.39,0.438]
[1749366767881,1.10831234,649.88,649.39,0.438]
[1749366768182,1.10831234,649.87,649.39,0.438]
[1749366768382,1.10831234,649.86,649.38,0.385]
[1749366768583,1.10831234,649.85,649.38,0.385]
[1749366768785,1.10831234,649.84,649.38,0.385]
[1749366769081,1.10831234,649.83,649.37,0.30799082]
[1749366769280,1.10831234,649.82,649.37,0.30799082]
[1749366769482,0.45,649.91,649.37,0.30799082]
[1749366769483,1.10831234,649.81,649.37,0.30799082]
[1749366769682,0.45,649.91,649.37,0.30799082]
[1749366769880,1.1082745,649.9,649.37,0.30799082]
[1749366770081,1.1082745,649.89,649.37,0.30799082]
[1749366770280,1.1082745,649.88,649.37,0.30799082]
[1749366770485,1.1082745,649.87,649.37,0.30799082]
[1749366770780,1.1082745,649.86,649.37,0.30799082]
[1749366770984,1.1082745,649.85,649.37,0.30799082]
[1749366771180,1.1082745,649.84,649.38,0.415]
[1749366771380,1.1082745,649.83,649.38,0.415]
[1749366771584,1.1082745,649.82,649.38,0.415]
[1749366771785,1.1082745,649.81,649.38,0.415]
[1749366772082,0.45,649.91,649.38,0.415]
[1749366772287,1.10825252,649.9,649.38,0.415]
[1749366772586,1.10825252,649.89,649.39,0.385]
[1749366772885,1.10825252,649.88,649.39,0.385]
[1749366773186,1.10825252,649.87,649.39,0.385]
[1749366773482,1.10825252,649.86,649.39,0.385]
[1749366773683,1.10825252,649.85,649.39,0.385]
[1749366773887,1.10825252,649.84,649.39,0.385]
[1749366774087,1.10825252,649.83,649.39,0.385]
[1749366774281,1.10825252,649.82,649.39,0.385]
[1749366774483,1.10825252,649.81,649.39,0.385]
[1749366774687,0.45,649.91,649.39,0.385]
[1749366774888,1.10831337,649.9,649.39,0.385]
[1749366775088,1.10831337,649.89,649.39,0.385]
[1749366775286,1.10831337,649.88,649.39,0.385]
[1749366775486,1.10831337,649.87,649.39,0.385]
[1749366775684,1.10831337,649.86,649.39,0.385]
[1749366775891,1.10831337,649.85,649.39,0.385]
[1749366776189,1.10831337,649.84,649.39,0.385]
[1749366776390,1.10831337,649.83,649.39,0.385]
[1749366776686,1.10831337,649.82,649.39,0.385]
[1749366776890,1.10831337,649.81,649.39,0.385]
[1749366777086,0.45,649.91,649.39,0.385]
[1749366777285,1.10829934,649.9,649.39,0.385]
[1749366777488,0.45,649.91,649.39,0.385]
[1749366777489,1.10829934,649.89,649.39,0.385]
[1749366777789,1.10829934,649.88,649.39,0.385]
[1749366777984,1.10829934,649.87,649.39,0.385]
[1749366778289,0.45,649.91,649.39,0.385]
[1749366778290,1.10829934,649.86,649.39,0.385]
[1749366778587,1.10829934,649.85,649.39,0.385]
[1749366778888,1.10829934,649.84,649.39,0.385]
[1749366779085,1.10829934,649.83,649.39,0.385]
[1749366779389,1.10829934,649.82,649.39,0.385]
[1749366779589,1.10829934,649.81,649.39,0.385]
[1749366779785,0.45,649.91,649.39,0.385]
[1749366780087,1.10831837,649.9,649.39,0.385]
[1749366780286,1.10831837,649.89,649.39,0.385]
[1749366780490,1.10831837,649.88,649.39,0.385]
[1749366780786,1.10831837,649.87,649.39,0.385]
[1749366780986,1.10831837,649.86,649.39,0.385]
[1749366781185,1.10831837,649.85,649.39,0.385]
[1749366781388,0.45,649.91,649.39,0.385]
[1749366781389,1.10831837,649.84,649.39,0.385]
[1749366781585,1.10831837,649.83,649.39,0.385]
[1749366781789,1.10831837,649.82,649.39,0.385]
[1749366781989,1.10831837,649.81,649.39,0.385]
[1749366782290,0.45,649.91,649.39,0.385]
[1749366782590,1.10840242,649.9,649.39,0.385]
[1749366782790,1.10840242,649.89,649.39,0.385]
[1749366782990,1.10840242,649.88,649.39,0.385]
[1749366783287,0.45,649.91,649.39,0.385]
[1749366783485,1.10855172,649.9,649.39,0.385]
[1749366783687,1.10855172,649.89,649.39,0.385]
[1749366783889,1.10855172,649.88,649.39,0.385]
[1749366784088,0.26782416,649.95,649.39,0.385]
[1749366784390,1.10858945,649.94,649.39,0.385]
[1749366784591,1.10858945,649.93,649.39,0.385]
[1749366784790,1.10858945,649.92,649.39,0.385]
[1749366784990,1.10858945,649.91,649.39,0.385]
[1749366785290,1.10858945,649.9,649.39,0.385]
[1749366785490,1.10858945,649.89,649.39,0.385]
[1749366785691,0.26782416,649.95,649.39,0.385]
[1749366785888,1.1086271,649.94,649.39,0.385]
[1749366786089,1.1086271,649.93,649.39,0.385]
[1749366786286,1.1086271,649.92,649.39,0.385]
[1749366786587,1.1086271,649.91,649.39,0.385]
[1749366786891,1.1086271,649.9,649.39,0.385]
[1749366787090,1.1086271,649.89,649.39,0.385]
[1749366787287,1.1086271,649.88,649.39,0.385]
[1749366787587,0.604,649.89,649.39,0.385]
[1749366788788,1.10877111,649.88,649.39,0.385]
[1749366788991,0.604,649.89,649.4,0.461]
[1749366789192,1.10877205,649.88,649.4,0.461]
[1749366789388,0.604,649.89,649.4,0.461]
[1749366789589,1.10879668,649.88,649.4,0.461]
[1749366789794,0.604,649.89,649.4,0.461]
[1749366790090,1.1087921,649.88,649.4,0.461]
[1749366790295,0.604,649.89,649.4,0.461]
[1749366790590,1.10881297,649.88,649.4,0.461]
[1749366790790,0.604,649.89,649.4,0.461]
[1749366790989,1.10881633,649.88,649.4,0.461]
[1749366791190,0.604,649.89,649.4,0.461]
[1749366791389,1.10882036,649.88,649.4,0.461]
[1749366791591,0.604,649.89,649.4,0.461]
[1749366791794,1.10884101,649.88,649.4,0.461]
[1749366791994,0.604,649.89,649.4,0.461]
[1749366792190,1.10885474,649.88,649.4,0.461]
[1749366792395,0.604,649.89,649.4,0.461]
[1749366795893,0.604,649.89,649.41,0.385]
[1749366807602,1.10927339,649.88,649.41,0.385]
[1749366807802,1.10927339,649.87,649.41,0.385]
[1749366808098,0.604,649.89,649.41,0.385]
[1749366808297,1.109244,649.88,649.41,0.385]
[1749366808501,1.109244,649.87,649.41,0.385]
[1749366808699,0.604,649.89,649.41,0.385]
[1749366808899,1.10923315,649.88,649.41,0.385]
[1749366809103,1.10923315,649.87,649.41,0.385]
[1749366809300,0.604,649.89,649.41,0.385]
[1749366809603,1.10922086,649.88,649.41,0.385]
[1749366809804,1.10922086,649.87,649.41,0.385]
[1749366810105,1.10922086,649.86,649.41,0.385]
[1749366810304,0.604,649.89,649.41,0.385]
[1749366810602,1.10913443,649.88,649.41,0.385]
[1749366810800,1.10913443,649.87,649.41,0.385]
[1749366811002,1.10913443,649.86,649.41,0.385]
[1749366811204,1.10913443,649.85,649.41,0.385]
[1749366811406,1.10913443,649.84,649.41,0.385]
[1749366811601,0.604,649.89,649.41,0.385]
[1749366811602,1.10913443,649.83,649.41,0.385]
[1749366811907,1.10913443,649.82,649.41,0.385]
[1749366812200,1.10913443,649.81,649.41,0.385]
[1749366812404,1.10913443,649.8,649.41,0.385]
[1749366812601,1.10913443,649.79,649.41,0.385]
[1749366812801,1.10913443,649.78,649.41,0.385]
[1749366813007,0.604,649.89,649.41,0.385]
[1749366813202,1.10865872,649.88,649.41,0.385]
[1749366813402,0.604,649.89,649.41,0.385]
[1749366813403,1.10865872,649.87,649.41,0.385]
[1749366813606,1.10865872,649.86,649.41,0.385]
[1749366813804,1.10865872,649.85,649.41,0.385]
[1749366814007,1.10865872,649.84,649.41,0.385]
[1749366814203,1.10865872,649.83,649.41,0.385]
[1749366814407,1.10865872,649.82,649.41,0.385]
[1749366814603,1.10865872,649.81,649.41,0.385]
[1749366814808,1.10865872,649.8,649.41,0.385]
[1749366815004,1.10865872,649.79,649.41,0.385]
[1749366815205,1.10865872,649.78,649.41,0.385]
[1749366815409,0.604,649.89,649.41,0.385]
[1749366815607,1.10867935,649.88,649.41,0.385]
[1749366815806,1.10867935,649.87,649.4,0.461]
[1749366816006,1.10867935,649.86,649.4,0.461]
[1749366816205,1.10867935,649.85,649.4,0.461]
[1749366816408,1.10867935,649.84,649.4,0.461]
[1749366816609,1.10867935,649.83,649.4,0.461]
[1749366816911,1.10867935,649.82,649.37,0.30799082]
[1749366817109,1.10867935,649.81,649.37,0.30799082]
[1749366817306,1.10867935,649.8,649.37,0.30799082]
[1749366817509,0.604,649.89,649.37,0.30799082]
[1749366817713,1.10931526,649.88,649.37,0.30799082]
[1749366817912,1.10931526,649.87,649.37,0.30799082]
[1749366818213,1.10931526,649.86,649.37,0.30799082]
[1749366818412,0.604,649.89,649.37,0.30799082]
[1749366818413,1.10931526,649.85,649.37,0.30799082]
[1749366818613,1.10931526,649.84,649.37,0.30799082]
[1749366818910,1.10931526,649.83,649.37,0.30799082]
[1749366819112,1.10931526,649.82,649.37,0.30799082]
[1749366819313,0.604,649.89,649.37,0.30799082]
[1749366819511,1.10936214,649.88,649.38,0.6]
[1749366819713,1.10936214,649.87,649.38,0.985]
[1749366820013,1.10936214,649.86,649.38,0.985]
[1749366820211,0.604,649.89,649.38,0.985]
[1749366820212,1.10936214,649.85,649.38,0.985]
[1749366820410,1.10936214,649.84,649.38,0.985]
[1749366820610,1.10936214,649.83,649.38,0.985]
[1749366820815,1.10936214,649.82,649.38,0.985]
[1749366821010,1.10936214,649.81,649.38,0.985]
[1749366821214,0.604,649.89,649.38,0.985]
[1749366821419,1.10936769,649.88,649.38,0.985]
[1749366821617,1.10936769,649.87,649.38,0.985]
[1749366821917,1.10936769,649.86,649.38,0.985]
[1749366822114,1.10936769,649.85,649.38,0.985]
[1749366822315,1.10936769,649.84,649.38,0.985]
[1749366822616,1.10936769,649.83,649.38,0.985]
[1749366822817,1.10936769,649.82,649.38,0.985]
[1749366823113,1.10936769,649.81,649.38,0.985]
[1749366823318,0.604,649.89,649.38,0.985]
[1749366823520,1.11009435,649.88,649.38,0.985]
[1749366823719,1.11009435,649.87,649.38,0.985]
[1749366823915,1.11009435,649.86,649.38,0.985]
[1749366824119,1.11009435,649.85,649.38,0.985]
[1749366824316,1.11009435,649.84,649.38,0.985]
[1749366824619,1.11009435,649.83,649.38,0.985]
[1749366824820,1.11009435,649.82,649.38,0.985]
[1749366825021,0.604,649.89,649.38,0.985]
[1749366825222,1.11012109,649.88,649.38,0.985]
[1749366825421,1.11012109,649.87,649.38,0.985]
[1749366825621,1.11012109,649.86,649.38,0.985]
[1749366825822,1.11012109,649.85,649.38,0.985]
[1749366826021,1.11012109,649.84,649.38,0.985]
[1749366826222,1.11012109,649.83,649.38,0.985]
[1749366826422,0.604,649.89,649.38,0.985]
[1749366826423,1.11012109,649.82,649.38,0.985]
[1749366826722,0.604,649.89,649.38,0.985]
[1749366827018,1.11021332,649.88,649.38,0.985]
[1749366827218,1.11021332,649.87,649.38,0.985]
[1749366827416,1.11021332,649.86,649.38,0.985]
[1749366827620,1.11021332,649.85,649.38,0.985]
[1749366827817,1.11021332,649.84,649.38,0.985]
[1749366828017,1.11021332,649.83,649.38,0.985]
[1749366828221,1.11021332,649.82,649.38,0.985]
[1749366828422,1.11021332,649.81,649.38,0.985]
[1749366828723,0.604,649.89,649.38,0.985]
[1749366828921,1.11024652,649.88,649.38,0.985]
[1749366829217,1.11024652,649.87,649.38,0.985]
[1749366829525,1.11024652,649.86,649.38,0.985]
[1749366829818,1.11024652,649.85,649.38,0.985]
[1749366830022,0.604,649.89,649.38,0.985]
[1749366830023,1.11024652,649.84,649.38,0.985]
[1749366830322,1.11024652,649.83,649.38,0.985]
[1749366830519,1.11024652,649.82,649.38,0.985]
[1749366830818,0.604,649.89,649.38,0.985]
[1749366831023,1.11031956,649.88,649.38,0.985]
[1749366831222,1.11031956,649.87,649.38,0.985]
[1749366831420,1.11031956,649.86,649.38,0.985]
[1749366831623,1.11031956,649.85,649.38,0.985]
[1749366831825,1.11031956,649.84,649.38,0.985]
[1749366832125,1.11031956,649.83,649.38,0.985]
[1749366832421,1.11031956,649.82,649.38,0.985]
[1749366832626,0.604,649.89,649.38,0.985]
[1749366832822,1.11037381,649.88,649.38,0.985]
[1749366833126,1.11037381,649.87,649.38,0.985]
[1749366833323,1.11037381,649.86,649.38,0.985]
[1749366833526,1.11037381,649.85,649.38,0.985]
[1749366833722,1.11037381,649.84,649.38,0.985]
[1749366833922,1.11037381,649.83,649.38,0.985]
[1749366834121,1.11037381,649.82,649.38,0.985]
[1749366834323,1.11037381,649.81,649.38,0.985]
[1749366834523,0.604,649.89,649.38,0.985]
[1749366834727,1.11041772,649.88,649.38,0.985]
[1749366834928,1.11041772,649.87,649.38,0.985]
[1749366835125,1.11041772,649.86,649.38,0.985]
[1749366835325,1.11041772,649.85,649.38,0.985]
[1749366835529,1.11041772,649.84,649.38,0.985]
[1749366835729,1.11041772,649.83,649.38,0.6]
[1749366835926,1.11041772,649.82,649.38,0.6]
[1749366836130,1.11041772,649.81,649.38,0.6]
[1749366836328,0.604,649.89,649.38,0.6]
[1749366836530,1.11044921,649.88,649.38,0.6]
[1749366836728,1.11044921,649.87,649.38,0.6]
[1749366836928,1.11044921,649.86,649.38,0.6]
[1749366837127,1.11044921,649.85,649.38,0.6]
[1749366837326,1.11044921,649.84,649.38,0.6]
[1749366837532,1.11044921,649.83,649.37,0.30799082]
[1749366837728,1.11044921,649.82,649.37,0.30799082]
[1749366837932,1.11044921,649.81,649.37,0.30799082]
[1749366838132,0.604,649.89,649.37,0.30799082]
[1749366838330,1.11061808,649.88,649.37,0.30799082]
[1749366838629,1.11061808,649.87,649.37,0.30799082]
[1749366838829,1.11061808,649.86,649.37,0.30799082]
[1749366839032,1.11061808,649.85,649.37,0.30799082]